bitfinex-derivatives/quotes_BTCF0:USTF0_20250718
["timestamp","ask_amount","ask_price","bid_price","bid_amount"]
[1752801529515,1.08578717,120270.0,120260.0,0.61614]
[1752801529709,0.41034717,120270.0,120260.0,0.25534]
[1752801530013,0.29023717,120270.0,120260.0,1.16762395]
[1752801530209,0.96551717,120270.0,120260.0,1.16762395]
[1752801530610,0.96551717,120270.0,120260.0,0.81183204]
[1752801530811,0.96551717,120270.0,120260.0,1.19716699]
[1752801531621,0.29023717,120270.0,120260.0,1.19716699]
[1752801532017,0.96531717,120270.0,120260.0,0.81183204]
[1752801532216,0.96531717,120270.0,120260.0,1.19716699]
[1752801532418,0.96527717,120270.0,120260.0,1.19716699]
[1752801532723,0.29023717,120270.0,120260.0,1.19716699]
[1752801532922,0.96523717,120270.0,120260.0,1.19716699]
[1752801533123,0.29023717,120270.0,120260.0,1.19716699]
[1752801534018,0.12410197,120270.0,120260.0,1.19716699]
[1752801534917,0.97716717,120270.0,120260.0,0.782289]
[1752801535113,1.00054717,120270.0,120260.0,0.421489]
[1752801535322,1.00054717,120270.0,120260.0,0.782289]
[1752801535519,0.15965197,120270.0,120260.0,0.782289]
[1752801535723,0.15965197,120270.0,120260.0,0.80682395]
[1752801536023,0.53261717,120270.0,120260.0,0.7822891]
[1752801536223,0.53261717,120270.0,120260.0,0.81183214]
[1752801536425,0.49245717,120270.0,120260.0,0.4214891]
[1752801536724,1.16705717,120270.0,120260.0,0.7822891]
[1752801537024,1.20721717,120270.0,120260.0,0.7822891]
[1752801537213,0.32632197,120270.0,120260.0,0.7822891]
[1752801537415,0.32632197,120270.0,120260.0,0.4214891]
[1752801537619,1.08764717,120270.0,120260.0,0.4214891]
[1752801538319,0.41312717,120270.0,120260.0,0.7822891]
[1752801538519,1.00072197,120270.0,120260.0,0.7822891]
[1752801538822,1.00072197,120270.0,120260.0,1.16762405]
[1752801539025,0.24699197,120270.0,120260.0,1.16762405]
[1752801539319,0.86536197,120270.0,120260.0,1.16762405]
[1752801539525,0.13627197,120270.0,120260.0,1.16762405]
[1752801539824,0.79842197,120270.0,120260.0,1.16762405]
[1752801540327,0.24699197,120270.0,120260.0,1.16762405]
[1752801540625,1.00052197,120270.0,120260.0,0.7822891]
[1752801540826,0.24699197,120270.0,120260.0,0.7822891]
[1752801541027,0.92119197,120270.0,120260.0,0.7822891]
[1752801541327,0.17101152,120290.0,120280.0,0.1661214]
[1752801541530,0.97107912,120290.0,120280.0,1.16077635]
[1752801541723,1.00853197,120290.0,120280.0,0.7754414]
[1752801541925,0.33441197,120290.0,120280.0,0.7754414]
[1752801542230,0.24712045,120290.0,120280.0,0.7754414]
[1752801542426,0.53271805,120290.0,120280.0,0.49095]
[1752801542722,0.53271805,120290.0,120250.0,0.49095]
[1752801542723,0.4085291,120260.0,120250.0,0.49095]
[1752801542928,0.4085291,120260.0,120250.0,0.13015]
[1752801543229,1.20751671,120260.0,120250.0,0.2963129]
[1752801543624,0.32720761,120260.0,120250.0,0.7754829]
[1752801543830,0.41402671,120260.0,120250.0,1.16081785]
[1752801544027,1.08794671,120260.0,120250.0,1.16081785]
[1752801544228,1.08894671,120260.0,120250.0,0.7754829]
[1752801544430,1.16827671,120260.0,120250.0,0.7754829]
[1752801544630,1.00212761,120260.0,120250.0,0.7754829]
[1752801544826,0.24887761,120260.0,120250.0,0.7754829]
[1752801545031,1.08886671,120260.0,120250.0,0.7754829]
[1752801545331,1.20835671,120260.0,120250.0,0.7754829]
[1752801545529,0.53451671,120260.0,120250.0,0.7754829]
[1752801545730,0.53351671,120260.0,120250.0,0.7764829]
[1752801545931,0.53351671,120260.0,120250.0,0.7539729]
[1752801546126,0.53351671,120260.0,120250.0,0.22701]
[1752801546434,1.20727671,120260.0,120250.0,0.17446]
[1752801546628,1.20727671,120260.0,120250.0,0.3406229]
[1752801547336,1.59257166,120260.0,120250.0,0.002]
[1752801547533,1.59257166,120260.0,120250.0,0.003]
[1752801547728,0.49335671,120260.0,120250.0,0.4176829]
[1752801547932,1.20715671,120260.0,120250.0,0.3951729]
[1752801548132,0.53351671,120260.0,120250.0,0.3951729]
[1752801548332,1.20711671,120260.0,120250.0,0.3941729]
[1752801548536,1.20711671,120260.0,120250.0,0.3921729]
[1752801548733,1.20811671,120260.0,120250.0,0.3931729]
[1752801549237,1.20811671,120260.0,120250.0,0.2973129]
[1752801549938,0.53451671,120260.0,120250.0,0.3931729]
[1752801550138,0.12598761,120260.0,120250.0,0.7764829]
[1752801550333,0.79946761,120260.0,120250.0,0.80602594]
[1752801550640,0.79846761,120260.0,120250.0,0.80602594]
[1752801551035,0.79838761,120260.0,120250.0,0.80602594]
[1752801551738,0.12498761,120260.0,120250.0,1.19136089]
[1752801551934,0.12498761,120260.0,120250.0,1.20613241]
[1752801552131,0.01217,120280.0,120270.0,0.4146552]
[1752801552331,1.40587874,120290.0,120280.0,0.1661214]
[1752801552536,1.40587874,120290.0,120280.0,0.7754414]
[1752801552537,1.86344697,120290.0,120280.0,0.7754414]
[1752801552737,1.48111302,120290.0,120280.0,0.7754414]
[1752801553037,2.15439302,120290.0,120280.0,0.7754414]
[1752801553436,2.15435302,120290.0,120280.0,0.7754414]
[1752801553740,1.98593797,120290.0,120280.0,0.50266]
[1752801553942,0.4085014,120280.0,120270.0,0.13015]
[1752801554136,1.0816614,120280.0,120270.0,0.13015]
[1752801554336,1.20672059,120280.0,120270.0,0.50266]
[1752801554538,1.20672059,120280.0,120270.0,0.14186]
[1752801554737,1.20672059,120280.0,120270.0,0.50266]
[1752801554937,1.20672059,120280.0,120270.0,0.6687954]
[1752801555134,1.20672059,120280.0,120270.0,0.6993954]
[1752801555341,0.53356059,120280.0,120270.0,0.7754554]
[1752801555542,1.20656059,120280.0,120270.0,0.7754554]
[1752801556239,1.16840059,120280.0,120270.0,0.7754554]
[1752801556837,1.16640059,120280.0,120270.0,0.7754554]
[1752801557233,1.16640059,120280.0,120270.0,0.4146554]
[1752801557433,1.16640059,120280.0,120270.0,0.7754554]
[1752801557638,1.08707059,120280.0,120270.0,0.4146554]
[1752801557939,0.92094919,120280.0,120270.0,0.7754554]
[1752801558136,0.13722919,120280.0,120270.0,0.7754554]
[1752801558336,0.80998919,120280.0,120270.0,0.80501405]
[1752801558532,0.13722919,120280.0,120270.0,0.80501405]
[1752801558742,0.80998919,120280.0,120270.0,0.80501405]
[1752801559041,0.80998919,120280.0,120270.0,0.63887865]
[1752801559042,0.99945069,120280.0,120270.0,0.63887865]
[1752801559244,1.16612069,120280.0,120270.0,0.61632]
[1752801559438,1.16612069,120280.0,120270.0,0.65187865]
[1752801559646,1.08679069,120280.0,120270.0,0.81801405]
[1752801559942,0.32673069,120280.0,120270.0,0.81901405]
[1752801560235,0.96378069,120280.0,120270.0,0.81901405]
[1752801560441,0.97595069,120280.0,120270.0,0.81901405]
[1752801560634,0.96378069,120280.0,120270.0,0.81901405]
[1752801560838,0.29118069,120280.0,120270.0,0.81901405]
[1752801561040,0.96374069,120280.0,120270.0,0.81301405]
[1752801561344,0.12505919,120280.0,120270.0,1.199349]
[1752801561536,0.12505919,120280.0,120270.0,0.82176996]
[1752801561737,0.12505919,120280.0,120270.0,1.23668563]
[1752801561939,0.79745919,120280.0,120270.0,0.85135068]
[1752801562239,0.96358089,120280.0,120270.0,0.85135068]
[1752801562441,0.96358089,120280.0,120270.0,1.23668563]
[1752801562737,0.29118089,120280.0,120270.0,1.23668563]
[1752801562942,0.96358089,120280.0,120270.0,1.23668563]
[1752801563142,0.12505919,120280.0,120270.0,0.92335068]
[1752801563343,0.29118089,120280.0,120270.0,1.30868563]
[1752801563737,0.96342089,120280.0,120270.0,1.30868563]
[1752801564242,0.79729919,120280.0,120270.0,1.30868563]
[1752801564545,0.2606362,120290.0,120280.0,0.2620417]
[1752801564741,0.9328362,120290.0,120280.0,0.7749217]
[1752801564941,1.05806856,120290.0,120280.0,0.7749217]
[1752801565843,1.05798856,120290.0,120280.0,0.7749217]
[1752801566244,1.08229856,120290.0,120280.0,0.7749217]
[1752801566645,1.08229856,120290.0,120280.0,0.80450242]
[1752801567147,0.61967856,120290.0,120280.0,0.48925]
[1752801567347,0.61967856,120290.0,120280.0,0.6669918]
[1752801567647,1.16691856,120290.0,120280.0,0.7759218]
[1752801567847,1.08386066,120290.0,120280.0,0.7759218]
[1752801568146,0.9190911,120290.0,120280.0,0.7759218]
[1752801568348,1.08562831,120290.0,120280.0,0.7769218]
[1752801568842,1.17014831,120290.0,120280.0,0.7769218]
[1752801569147,1.17061742,120290.0,120280.0,0.7769218]
[1752801569338,0.94128315,120290.0,120280.0,0.41073]
[1752801569642,0.94128315,120290.0,120280.0,0.3618]
[1752801569842,1.61304315,120290.0,120280.0,0.001]
[1752801570247,0.94128315,120290.0,120280.0,0.002]
[1752801570542,1.59595237,120290.0,120280.0,0.1681219]
[1752801571043,1.21057742,120290.0,120280.0,0.1671219]
[1752801571247,1.59591237,120290.0,120280.0,0.1661219]
[1752801571746,0.92423237,120290.0,120280.0,0.1777419]
[1752801571946,0.53889742,120290.0,120280.0,0.6669919]
[1752801572143,1.21049742,120290.0,120280.0,0.3061919]
[1752801572447,0.37278932,120290.0,120280.0,0.6669919]
[1752801572747,0.53889762,120290.0,120280.0,0.6669919]
[1752801573347,1.59579257,120290.0,120280.0,0.6553721]
[1752801573545,1.59579257,120290.0,120280.0,0.5758521]
[1752801573740,1.21045762,120290.0,120280.0,0.5758521]
[1752801573938,1.59579257,120290.0,120280.0,0.5758521]
[1752801574137,1.59579257,120290.0,120280.0,0.40973]
[1752801574345,0.2624021,120280.0,120270.0,0.41179162]
[1752801574544,1.0828321,120280.0,120270.0,0.7014778]
[1752801574739,1.20708455,120280.0,120270.0,0.7014778]
[1752801574945,1.5924195,120280.0,120270.0,0.49382]
[1752801575148,1.59470646,120280.0,120270.0,0.49382]
[1752801575347,1.20937151,120280.0,120270.0,0.659956]
[1752801575843,1.20937151,120280.0,120270.0,0.13502]
[1752801576047,1.20937151,120280.0,120270.0,0.301156]
[1752801576249,1.20937151,120280.0,120270.0,0.661956]
[1752801576645,1.20937151,120280.0,120270.0,0.13502]
[1752801577148,0.53793151,120280.0,120270.0,0.13502]
[1752801577342,1.20917151,120280.0,120270.0,0.13502]
[1752801577548,1.20917151,120280.0,120270.0,0.6619559]
[1752801577749,0.53793151,120280.0,120270.0,0.6619559]
[1752801577943,1.20917151,120280.0,120270.0,0.3011559]
[1752801578144,1.20917151,120280.0,120270.0,0.13502]
[1752801578340,1.91991053,120280.0,120270.0,0.13502]
[1752801578547,1.24871053,120280.0,120270.0,0.13502]
[1752801579151,1.91987053,120280.0,120270.0,0.13502]
[1752801579349,1.91987053,120280.0,120270.0,0.00657]
[1752801580045,0.2868045,120270.0,120250.0,0.15341528]
[1752801580246,0.4114199,120260.0,120250.0,0.19574442]
[1752801580446,0.4114199,120260.0,120250.0,0.69661442]
[1752801580648,0.53533972,120260.0,120250.0,0.38012898]
[1752801580847,1.20641972,120260.0,120250.0,0.70989442]
[1752801581350,1.20870668,120260.0,120250.0,0.70989442]
[1752801581550,1.20970668,120260.0,120250.0,0.72589442]
[1752801581850,0.53862668,120260.0,120250.0,0.55973072]
[1752801582050,1.20974668,120260.0,120250.0,0.55511072]
[1752801582642,1.20974668,120260.0,120250.0,0.59942528]
[1752801582846,1.20974668,120260.0,120250.0,0.54811072]
[1752801583046,1.21865126,120260.0,120250.0,0.56011072]
[1752801583349,1.21062668,120260.0,120250.0,0.72627442]
[1752801583544,1.21062668,120260.0,120250.0,0.73789442]
[1752801583751,0.53962668,120260.0,120250.0,0.73789442]
[1752801584051,0.53962668,120260.0,120250.0,0.76867442]
[1752801584651,1.21058668,120260.0,120250.0,0.76867442]
[1752801586151,0.53962668,120260.0,120250.0,0.76867442]
[1752801586351,1.21050668,120260.0,120250.0,0.60251072]
[1752801586549,1.21050668,120260.0,120250.0,0.76126543]
[1752801587351,1.21050668,120260.0,120250.0,0.7390937]
[1752801587555,1.21050668,120260.0,120250.0,0.8162437]
[1752801587856,0.53962668,120260.0,120250.0,0.65008]
[1752801588057,1.21042668,120260.0,120250.0,0.65008]
[1752801588455,1.21042668,120260.0,120250.0,0.83841265]
[1752801588456,0.53962668,120260.0,120250.0,0.83841265]
[1752801588757,1.21038668,120260.0,120250.0,0.83841265]
[1752801588951,1.21038668,120260.0,120250.0,0.83841082]
[1752801590151,0.53962668,120260.0,120250.0,0.83841082]
[1752801590352,1.21030668,120260.0,120250.0,0.83841082]
[1752801590557,1.21030668,120260.0,120250.0,0.84582442]
[1752801592157,1.21030668,120260.0,120250.0,0.86798436]
[1752801592659,0.83833591,120260.0,120250.0,0.22147066]
[1752801592854,0.83833591,120260.0,120250.0,0.13192851]
[1752801593060,1.86969591,120260.0,120250.0,0.10234779]
[1752801593660,1.86969591,120260.0,120250.0,0.05341779]
[1752801593860,1.19913591,120260.0,120250.0,0.05341779]
[1752801594060,1.86965591,120260.0,120250.0,0.05341779]
[1752801594954,1.86965591,120260.0,120250.0,0.07557999]
[1752801595355,0.370839,120250.0,120240.0,0.0221622]
[1752801595561,0.370839,120250.0,120230.0,0.02958072]
[1752801595562,0.3445329,120240.0,120230.0,0.02958072]
[1752801595756,0.3445463,120230.0,120220.0,0.02958072]
[1752801596061,0.2907801,120220.0,120210.0,0.04480456]
[1752801596358,1.38649215,120220.0,120210.0,0.04480456]
[1752801596564,1.38649215,120220.0,120210.0,0.05925825]
[1752801597268,1.46117001,120220.0,120210.0,0.05925825]
[1752801597468,1.1791304,120220.0,120210.0,0.04759]
[1752801597665,1.47783963,120220.0,120210.0,0.04759]
[1752801597865,1.47883963,120220.0,120210.0,0.05759]
[1752801598067,0.80831487,120220.0,120210.0,0.05759]
[1752801598259,1.47863487,120220.0,120210.0,0.10191403]
[1752801598567,0.80831487,120220.0,120210.0,0.10191403]
[1752801598963,1.17992564,120220.0,120210.0,0.10191403]
[1752801599269,1.16317602,120220.0,120210.0,0.17475]
[1752801599567,1.16321602,120220.0,120210.0,0.17475]
[1752801599968,1.16321602,120220.0,120210.0,0.21807403]
[1752801600472,1.16317602,120220.0,120210.0,0.21807403]
[1752801600764,0.24884771,120220.0,120210.0,0.30295403]
[1752801600965,0.24884771,120220.0,120210.0,1.2386967]
[1752801600966,0.12756282,120220.0,120210.0,1.2386967]
[1752801601269,0.79784282,120220.0,120210.0,1.2386967]
[1752801601665,0.25212282,120220.0,120210.0,0.82998813]
[1752801601868,1.49733159,120220.0,120210.0,0.61943]
[1752801602065,0.82705159,120220.0,120210.0,0.10089406]
[1752801602368,2.04146802,120220.0,120210.0,0.009]
[1752801602570,1.37126802,120220.0,120210.0,0.009]
[1752801602762,2.04246802,120220.0,120210.0,0.016]
[1752801602964,1.63375945,120220.0,120210.0,0.016]
[1752801603163,2.04246802,120220.0,120210.0,0.016]
[1752801603368,1.37226802,120220.0,120210.0,0.016]
[1752801603666,0.79719244,120220.0,120210.0,0.377755]
[1752801603864,1.30113124,120220.0,120210.0,0.431865]
[1752801604066,1.30109124,120220.0,120210.0,0.431865]
[1752801604473,0.33796739,120220.0,120210.0,0.431865]
[1752801604670,0.02133538,120220.0,120210.0,1.30493588]
[1752801604967,0.0168541,120240.0,120230.0,0.4158373]
[1752801605167,0.0168541,120240.0,120230.0,1.60514524]
[1752801605362,1.22025,120260.0,120230.0,1.60514524]
[1752801605363,1.15016,120260.0,120250.0,0.2092197]
[1752801605562,0.06133,120270.0,120260.0,0.4157959]
[1752801605768,0.42213,120280.0,120270.0,0.3924021]
[1752801605974,1.09221,120280.0,120270.0,0.4157821]
[1752801606272,1.21748205,120280.0,120270.0,0.4157821]
[1752801606476,0.48607205,120280.0,120270.0,0.3186321]
[1752801606773,0.79531205,120280.0,120270.0,1.13238207]
[1752801606972,0.79531205,120280.0,120270.0,1.08814067]
[1752801607473,0.79531205,120280.0,120270.0,0.72360654]
[1752801607670,0.12527205,120280.0,120270.0,0.72360654]
[1752801608070,1.15028,120300.0,120280.0,0.2121641]
[1752801608275,0.67,120290.0,120280.0,1.2568781]
[1752801608679,0.79446533,120290.0,120280.0,0.84816953]
[1752801608973,0.79434533,120290.0,120280.0,0.84816953]
[1752801609372,0.79434533,120290.0,120280.0,0.76510353]
[1752801609779,0.80734533,120290.0,120280.0,0.76610353]
[1752801610272,0.6828,120290.0,120280.0,1.1748121]
[1752801610471,0.6828,120290.0,120280.0,0.76710353]
[1752801610672,0.01704718,120320.0,120310.0,0.1660968]
[1752801610881,0.76387718,120320.0,120310.0,0.6793768]
[1752801611173,1.12696719,120320.0,120310.0,0.6793768]
[1752801611378,1.12696719,120320.0,120310.0,0.2951968]
[1752801611379,0.86591576,120320.0,120310.0,0.2951968]
[1752801611678,1.53555576,120320.0,120310.0,0.2951968]
[1752801611875,1.12684719,120320.0,120310.0,0.2951968]
[1752801612078,0.29112419,120320.0,120310.0,0.2951968]
[1752801612279,0.97472419,120320.0,120310.0,0.2961968]
[1752801612468,0.97472419,120320.0,120310.0,0.3195768]
[1752801612675,0.90205419,120320.0,120310.0,0.6803768]
[1752801613480,0.90801419,120320.0,120310.0,0.6803768]
[1752801613774,1.60751576,120320.0,120310.0,0.04859]
[1752801613977,0.3158506,120300.0,120290.0,0.15248]
[1752801614182,1.1018954,120300.0,120290.0,0.04759]
[1752801614379,1.89536605,120300.0,120290.0,0.04759]
[1752801614673,0.63449065,120300.0,120290.0,0.3186045]
[1752801614869,1.23118065,120300.0,120290.0,0.3186045]
[1752801615269,1.23518065,120300.0,120290.0,0.3186045]
[1752801615678,1.24118065,120300.0,120290.0,0.3186045]
[1752801615872,0.80331065,120300.0,120290.0,0.6794045]
[1752801616073,0.80327065,120300.0,120290.0,1.08811307]
[1752801616268,0.96938135,120300.0,120290.0,1.08811307]
[1752801616481,0.37713135,120300.0,120290.0,0.6794045]
[1752801616674,0.37713135,120300.0,120290.0,0.3186045]
[1752801616978,1.04641135,120300.0,120290.0,0.6794045]
[1752801617679,1.07043135,120300.0,120290.0,0.3186045]
[1752801617870,1.11900135,120300.0,120290.0,0.3186045]
[1752801618380,1.04629135,120300.0,120290.0,0.3186045]
[1752801618572,0.80311065,120300.0,120290.0,1.08811307]
[1752801619976,0.01,120300.0,120290.0,1.50436907]
[1752801621184,0.01,120300.0,120290.0,1.25436907]
[1752801622985,0.01694829,120310.0,120300.0,0.3218407]
[1752801623282,0.01694829,120310.0,120300.0,1.09134927]
[1752801623485,0.01694829,120310.0,120300.0,1.25759727]
[1752801623786,0.01694829,120310.0,120300.0,0.8488887]
[1752801623986,0.01694829,120310.0,120300.0,1.25759727]
[1752801624183,0.02194829,120310.0,120300.0,1.25759727]
[1752801624788,0.02194829,120310.0,120300.0,1.34071933]
[1752801624984,1.4354194,120340.0,120330.0,0.1660693]
[1752801625191,2.1456539,120340.0,120330.0,0.3217993]
[1752801625385,2.06236424,120340.0,120330.0,0.3217993]
[1752801625590,2.22841974,120340.0,120330.0,0.3217993]
[1752801625982,2.22841974,120340.0,120330.0,0.6825993]
[1752801626487,2.24141974,120340.0,120330.0,0.6825993]
[1752801626694,2.28814974,120340.0,120330.0,0.3217993]
[1752801627094,2.28514974,120340.0,120330.0,0.3217993]
[1752801627596,2.69385831,120340.0,120330.0,0.2153493]
[1752801627794,3.05465831,120340.0,120330.0,0.2153493]
[1752801627994,2.52780281,120340.0,120330.0,0.2153493]
[1752801628293,1.28444464,120340.0,120330.0,0.7779493]
[1752801628488,1.95288464,120340.0,120330.0,0.6825993]
[1752801628691,1.95288464,120340.0,120330.0,1.09130787]
[1752801628891,0.80276464,120340.0,120330.0,1.09130787]
[1752801629287,0.01,120340.0,120330.0,1.09130787]
[1752801629592,0.1106096,120370.0,120360.0,0.1660279]
[1752801629799,0.26036809,120370.0,120360.0,0.2153079]
[1752801630097,1.29652844,120370.0,120360.0,0.2153079]
[1752801630293,0.3154179,120360.0,120350.0,0.2153147]
[1752801630498,1.08492647,120360.0,120350.0,0.1660347]
[1752801630700,0.14939,120340.0,120330.0,0.6919518]
[1752801630901,0.66828,120350.0,120340.0,0.1660555]
[1752801631096,0.07998,120350.0,120340.0,0.2725055]
[1752801631291,0.11949416,120370.0,120360.0,0.1660279]
[1752801631496,0.78773416,120370.0,120360.0,0.3217579]
[1752801631799,0.91314864,120370.0,120360.0,0.3217579]
[1752801632300,0.24490864,120370.0,120360.0,0.3217579]
[1752801632902,0.09693478,120390.0,120380.0,0.3217303]
[1752801633197,0.46338,120400.0,120390.0,0.1659865]
[1752801633401,0.46338,120400.0,120390.0,0.30281812]
[1752801633602,1.25611732,120400.0,120390.0,0.30281812]
[1752801634298,1.42209012,120400.0,120390.0,0.30281812]
[1752801634493,0.3153903,120380.0,120370.0,0.2973441]
[1752801634693,0.3154041,120370.0,120360.0,0.2568049]
[1752801634898,1.08491267,120370.0,120360.0,0.2153001]
[1752801635196,1.20879338,120370.0,120360.0,0.04928]
[1752801635401,0.43928481,120370.0,120360.0,0.2153079]
[1752801635596,0.43928481,120370.0,120360.0,0.2973579]
[1752801635897,0.12388071,120370.0,120360.0,0.73246647]
[1752801636202,0.69276608,120390.0,120380.0,0.2973303]
[1752801636203,0.47996838,120390.0,120380.0,0.2973303]
[1752801636400,0.95299488,120390.0,120380.0,0.3217303]
[1752801636601,0.41045043,120390.0,120380.0,0.3217303]
[1752801636803,0.95299488,120390.0,120380.0,0.3217303]
[1752801639099,0.95399488,120390.0,120380.0,0.5268003]
[1752801639302,0.3154179,120360.0,120350.0,0.04928]
[1752801639502,0.9830579,120360.0,120350.0,0.2153217]
[1752801639708,1.10720686,120360.0,120350.0,0.2973717]
[1752801640407,0.10258,120380.0,120370.0,0.3217441]
[1752801640999,1.16292021,120380.0,120370.0,0.15573]
[1752801641203,1.16292021,120380.0,120370.0,0.1660141]
[1752801641204,1.81090291,120380.0,120370.0,0.1660141]
[1752801641403,1.79196081,120380.0,120370.0,0.1660141]
[1752801641603,1.43116081,120380.0,120370.0,0.2152941]
[1752801641803,1.91875081,120380.0,120370.0,0.04928]
[1752801642201,1.91875081,120380.0,120370.0,0.2152941]
[1752801642901,1.04372991,120380.0,120370.0,0.2152941]
[1752801643105,1.87725021,120380.0,120370.0,0.2973441]
[1752801643610,1.87857999,120380.0,120370.0,0.2973441]
[1752801643908,1.46987142,120380.0,120370.0,0.2973441]
[1752801644108,0.80235142,120380.0,120370.0,0.04928]
[1752801644303,1.21149067,120380.0,120370.0,0.1660141]
[1752801644509,0.1660141,120370.0,120360.0,0.7826623]
[1752801644711,0.31759524,120370.0,120360.0,0.4218623]
[1752801645210,0.31802592,120370.0,120360.0,0.3803562]
[1752801645506,0.10520182,120370.0,120360.0,0.3217474]
[1752801645711,0.74992182,120370.0,120360.0,0.3217474]
[1752801645907,0.00262182,120370.0,120360.0,0.73045597]
[1752801646113,0.66994182,120370.0,120360.0,1.09125597]
[1752801646312,0.66990182,120370.0,120360.0,1.09125597]
[1752801646513,0.00262182,120370.0,120360.0,1.09125597]
[1752801646713,0.00262182,120370.0,120360.0,1.12051879]
[1752801647211,0.00262182,120370.0,120360.0,0.71181022]
[1752801647506,0.00262182,120370.0,120360.0,1.28667879]
[1752801647712,0.00262182,120370.0,120360.0,0.87797022]
[1752801647913,0.00262182,120370.0,120360.0,1.28667879]
[1752801648711,0.00262182,120370.0,120360.0,1.12051879]
[1752801649108,0.66978182,120370.0,120360.0,1.09125597]
[1752801649306,0.66978182,120370.0,120360.0,0.6825474]
[1752801649507,0.83579592,120370.0,120360.0,0.6825474]
[1752801649812,0.08260182,120370.0,120360.0,0.6825474]
[1752801650013,0.74972182,120370.0,120360.0,0.6825474]
[1752801650216,0.74972182,120370.0,120360.0,1.09125597]
[1752801650411,0.91673562,120370.0,120360.0,1.12051879]
[1752801650714,0.75068182,120370.0,120360.0,1.12051879]
[1752801651111,0.67070182,120370.0,120360.0,1.12051879]
[1752801651307,0.67070182,120370.0,120360.0,1.09125597]
[1752801651507,0.67070182,120370.0,120360.0,1.12051879]
[1752801651908,0.83671552,120370.0,120360.0,1.12051879]
[1752801652104,0.83671552,120370.0,120360.0,0.6825474]
[1752801652316,0.83681982,120370.0,120360.0,1.12051879]
[1752801652913,0.83681982,120370.0,120360.0,1.09125597]
[1752801653216,0.77271612,120370.0,120360.0,0.71181022]
[1752801653405,0.74968612,120370.0,120360.0,0.71181022]
[1752801653606,0.74968612,120370.0,120360.0,1.12051879]
[1752801655810,0.74968612,120370.0,120360.0,0.71181022]
[1752801656012,0.74968612,120370.0,120360.0,1.12051879]
[1752801656615,0.74968612,120370.0,120360.0,0.71181022]
[1752801656920,0.74968612,120370.0,120360.0,1.12051879]
[1752801657118,0.74968612,120370.0,120360.0,1.16441567]
[1752801657919,0.76194612,120370.0,120360.0,1.26073567]
[1752801658420,0.83906612,120370.0,120360.0,0.85224654]
[1752801658619,0.83906612,120370.0,120360.0,1.21705823]
[1752801658819,0.92094612,120370.0,120360.0,0.80606746]
[1752801659122,0.25426612,120370.0,120360.0,0.78394966]
[1752801659323,0.92094612,120370.0,120360.0,0.78394966]
[1752801659518,1.08695982,120370.0,120360.0,0.44794966]
[1752801659712,1.44775982,120370.0,120360.0,0.44527392]
[1752801659916,1.08695982,120370.0,120360.0,0.42314966]
[1752801660220,0.92094612,120370.0,120360.0,0.44794966]
[1752801660423,0.87149612,120370.0,120360.0,0.44794966]
[1752801660623,0.87049612,120370.0,120360.0,0.85665823]
[1752801660920,0.87049612,120370.0,120360.0,1.26135511]
[1752801661320,2e-08,120370.0,120360.0,1.39803285]
[1752801661518,0.10191,120420.0,120410.0,0.2908085]
[1752801661714,0.15132,120440.0,120430.0,0.2453909]
[1752801661912,0.76847,120440.0,120430.0,1.01270534]
[1752801662114,0.1251556,120440.0,120430.0,0.60399677]
[1752801662513,0.8705556,120440.0,120430.0,1.01270534]
[1752801662819,0.15132,120460.0,120450.0,0.2701634]
[1752801663020,0.81784,120460.0,120450.0,0.6309634]
[1752801663318,0.76843,120460.0,120450.0,0.6309634]
[1752801663518,0.10191,120460.0,120450.0,0.6309634]
[1752801663822,0.7454,120460.0,120450.0,1.08506197]
[1752801664118,0.10191,120480.0,120470.0,0.3155256]
[1752801664512,0.22689169,120480.0,120470.0,0.3155256]
[1752801664719,0.89337169,120480.0,120470.0,0.6763256]
[1752801664914,1.19817,120490.0,120470.0,0.83969857]
[1752801665119,0.07888,120490.0,120480.0,1.08502047]
[1752801665323,0.74532,120490.0,120480.0,1.08502047]
[1752801665518,0.07888,120490.0,120480.0,1.08502047]
[1752801665713,0.74516,120490.0,120480.0,1.08502047]
[1752801666813,0.67519182,120500.0,120490.0,0.3154982]
[1752801666814,0.05920114,120500.0,120490.0,0.3154982]
[1752801667121,0.82735114,120510.0,120500.0,0.2906844]
[1752801667421,0.89189237,120510.0,120500.0,1.08499297]
[1752801667718,0.94130237,120510.0,120500.0,0.6514844]
[1752801668022,1.52708411,120510.0,120500.0,0.04539]
[1752801668321,1.46788297,120510.0,120500.0,0.2112244]
[1752801668517,0.63586237,120510.0,120500.0,0.3154844]
[1752801668722,0.94210237,120510.0,120500.0,0.3154844]
[1752801668923,0.89269237,120510.0,120500.0,0.3154844]
[1752801669115,1.05851287,120510.0,120500.0,0.3154844]
[1752801669314,0.44188287,120510.0,120500.0,0.3154843]
[1752801669525,1.10792287,120510.0,120500.0,0.2906845]
[1752801669719,1.10792287,120510.0,120500.0,0.12485]
[1752801669921,0.93570804,120510.0,120480.0,0.12485]
[1752801670222,0.3586585,120480.0,120470.0,0.04539]
[1752801670520,1.91794423,120480.0,120470.0,0.04539]
[1752801671024,0.15132,120470.0,120460.0,0.6515395]
[1752801671422,0.10191,120470.0,120460.0,0.6763395]
[1752801672024,0.9830358,120470.0,120460.0,0.48565]
[1752801672226,0.9830358,120470.0,120460.0,0.6535395]
[1752801672527,0.6779958,120470.0,120460.0,0.002]
[1752801672726,1.21064764,120470.0,120460.0,0.002]
[1752801672922,1.87640764,120470.0,120460.0,0.002]
[1752801673520,0.07244,120450.0,120430.0,0.04539]
[1752801673727,0.9829571,120440.0,120430.0,0.04539]
[1752801673927,1.3437571,120440.0,120430.0,0.04539]
[1752801674120,0.1659309,120430.0,120410.0,0.6097246]
[1752801674319,0.696504,120430.0,120420.0,0.04539]
[1752801674524,0.696504,120430.0,120410.0,0.6097246]
[1752801674525,0.2942347,120420.0,120410.0,0.5721478]
[1752801674727,0.9829447,120420.0,120410.0,0.40619]
[1752801675031,0.3172647,120420.0,120410.0,0.2113484]
[1752801675427,0.15132,120420.0,120410.0,0.5721484]
[1752801675633,0.76755,120420.0,120410.0,1.08511697]
[1752801675930,0.10191,120420.0,120410.0,0.6764084]
[1752801676132,0.76755,120420.0,120410.0,0.6764084]
[1752801676531,0.10191,120420.0,120410.0,0.6764084]
[1752801676733,0.76755,120420.0,120410.0,0.6764084]
[1752801676928,0.12829,120430.0,120420.0,0.1659446]
[1752801677132,0.15132,120430.0,120420.0,0.2907946]
[1752801677333,1.10719633,120430.0,120420.0,0.2907946]
[1752801677529,0.94130553,120430.0,120420.0,0.2907946]
[1752801677730,0.3172646,120420.0,120410.0,0.5731484]
[1752801678132,0.3172646,120420.0,120410.0,0.40719]
[1752801678432,0.3172646,120420.0,120410.0,0.5731484]
[1752801678433,0.15132,120420.0,120410.0,0.5731484]
[1752801678729,0.15132,120420.0,120410.0,0.6526084]
[1752801678930,0.10191,120420.0,120410.0,1.08611697]
[1752801679230,0.10291,120430.0,120420.0,0.3155945]
[1752801679436,0.76847,120430.0,120420.0,0.3155945]